fUSD/lending_fUSD_20251003
["ID","MTS","AMOUNT","RATE_DAILY","PERIOD"]
[388930945,1759514854682,1000.0,0.00016562,2]
[388930946,1759514864646,205.220072,0.00016563,2]
[388930947,1759514883887,245.22995114,0.00016438,2]
[388930948,1759514900980,1425.0,0.0001652,2]
[388930949,1759514901035,1425.0,0.00016584,2]
[388930950,1759514901283,1425.0,0.00016554,2]
[388930951,1759514908192,165.1,0.00015812,2]
[388930952,1759514967433,11054.53722663,0.00016586,2]
[388930953,1759514991493,200.0,0.0001581,2]
[388930954,1759515013267,291.0,0.00016602,2]
[388930971,1759515031746,-150.0,0.00016647,2]
[388930972,1759515031756,-150.0,0.00016647,2]
[388930974,1759515031802,-150.0,0.00016647,2]
[388930976,1759515031812,-1000.0,0.00016661,2]
[388930977,1759515031823,-298.97992141,0.00016664,2]
[388930978,1759515031833,-195.0,0.00016664,2]
[388930979,1759515031844,-300.0,0.00016675,2]
[388930980,1759515031854,-550.0,0.00016675,2]
[388930981,1759515031864,-148.24067644,0.00016675,2]
[388930982,1759515031880,-151.75932356,0.00016675,2]
[388930983,1759515031894,-300.0,0.00016675,2]
[388930984,1759515031905,-514.33101136,0.00016675,2]
[388930985,1759515031916,-685.66898864,0.00016675,2]
[388930986,1759515031926,-5.73527784,0.00016676,2]
[388930987,1759515031938,-196.63098742,0.00016676,2]
[388930988,1759515031948,-322.6107,0.00016676,2]
[388930989,1759515031958,-200.0,0.00016676,2]
[388930990,1759515031968,-7965.41053268,0.00016676,2]
[388930991,1759515031979,-151.0,0.00016676,2]
[388930992,1759515031989,-578.20924308,0.00016676,2]
[388930993,1759515032000,-630.546254,0.00016676,2]
[388930994,1759515032243,-1368.50696115,0.00016676,2]
[388930995,1759515032310,-1000.94678485,0.00016676,2]
[388930996,1759515032322,-231.28369723,0.00016676,2]
[388930997,1759515032332,-831.73322161,0.00016676,2]
[388930998,1759515032341,-1425.0,0.00016677,2]
[388930999,1759515032351,-1955.319866,0.00016681,2]
[388931000,1759515032360,-151.0,0.00016683,2]
[388931001,1759515032369,-1000.0,0.00016685,2]
[388931002,1759515032381,-500.0,0.00016685,2]
[388931003,1759515032393,-500.0,0.00016685,2]
[388931004,1759515032403,-500.0,0.00016685,2]
[388931005,1759515032413,-313.4589929,0.00016685,2]
[388931006,1759515032424,-500.0,0.00016685,2]
[388931007,1759515032434,-244.77686697,0.00016685,2]
[388931008,1759515032443,-500.0,0.00016685,2]
[388931009,1759515032452,-500.0,0.00016685,2]
[388931010,1759515032461,-500.0,0.00016685,2]
[388931011,1759515032470,-500.0,0.00016685,2]
[388931012,1759515032479,-500.0,0.00016685,2]
[388931013,1759515032488,-500.0,0.00016685,2]
[388931014,1759515032497,-19462.38059243,0.00016686,2]
[388931015,1759515032511,-2434.1944,0.00016686,2]
[388931016,1759515032539,-1228.64344772,0.00016686,2]
[388931017,1759515032555,-5400.66580842,0.00016686,2]
[388931018,1759515032567,-1005.22235336,0.00016686,2]
[388931019,1759515032666,-8345.6464138,0.00016686,2]
[388931020,1759515035177,-186.33463432,0.00016685,2]
[388931021,1759515035187,-18400.43529899,0.00016686,2]
[388931085,1759515041187,-30688.84510756,0.00016686,2]
[388931086,1759515041202,-10457.89682956,0.00016686,2]
[388931087,1759515041212,-144291.062936,0.00016686,2]
[388931088,1759515041223,-4190.9341646,0.00016686,2]
[388931089,1759515041233,-200.0,0.00016686,2]
[388931090,1759515041244,-136820.1810403,0.00016686,2]
[388931091,1759515041253,-7365.6808967,0.00016686,2]
[388931092,1759515041263,-4985.5807895,0.00016686,2]
[388931093,1759515041274,-200.0,0.00016686,2]
[388931094,1759515041282,-152.70329608,0.00016686,2]
[388931095,1759515041291,-773.02666,0.00016686,2]
[388931096,1759515041300,-200.0,0.00016686,2]
[388931097,1759515041310,-2300.0,0.000167,6]
[388931098,1759515041320,-150.0,0.00016703,2]
[388931099,1759515041330,-8260.13072239,0.00016731,2]
[388931100,1759515041340,-3427.57216536,0.00016743,2]
[388931101,1759515041351,-1265.888,0.00016743,2]
[388931102,1759515041371,-3094.0,0.00016743,2]
[388931103,1759515041384,-3267.07706118,0.00016743,2]
[388931104,1759515041394,-7874.92293882,0.00016786,2]
[388931105,1759515041413,-690.83262029,0.00016786,2]
[388931106,1759515041423,-863.16860374,0.00016798,2]
[388931107,1759515041432,-596.29321932,0.000168,6]
[388931108,1759515041459,-2903.70678068,0.000168,6]
[388931109,1759515041470,-150.0,0.00016816,2]
[388931110,1759515041479,-150.0,0.00016816,2]
[388931111,1759515041489,-500.0,0.00016841,2]
[388931112,1759515041498,-8882.6885148,0.00016841,2]
[388931113,1759515041508,-300.0,0.0001685,2]
[388931114,1759515041518,-1064.09976355,0.00016853,2]
[388931115,1759515041529,-200.0,0.00016853,2]
[388931116,1759515041538,-150.0,0.00016871,2]
[388931117,1759515041547,-255.0,0.00016883,2]
[388931118,1759515041556,-372.0,0.00016889,2]
[388931119,1759515041565,-4600.50494097,0.00016896,2]
[388931120,1759515041579,-4610.84304888,0.00016896,2]
[388931121,1759515041588,-378.0,0.00016896,2]
[388931122,1759515041598,-4600.0,0.000169,6]
[388931123,1759515041607,-128.75354368,0.000169,2]
[388931124,1759515041618,-6089.0,0.000169,2]
[388931125,1759515041979,-484.63648449,0.00016685,2]
[388931126,1759515041989,-3153.79791297,0.000169,2]
[388931127,1759515042191,-51.33325667,0.000169,2]
[388931137,1759515043827,-7333.43143826,0.000169,2]
[388931138,1759515043842,-4209.41807299,0.000169,2]
[388931139,1759515043853,-4617.2,0.000169,2]
[388931140,1759515043866,-3286.75000006,0.000169,2]
[388931141,1759515043877,-815.54374143,0.000169,2]
[388931142,1759515043887,-212.57317663,0.000169,2]
[388931143,1759515043897,-296.02973245,0.000169,2]
[388931144,1759515043907,-901.52959479,0.000169,2]
[388931145,1759515043917,-716.6556,0.000169,2]
[388931146,1759515043926,-5777.56409816,0.000169,2]
[388931150,1759515044119,-1256.05125045,0.000169,2]
[388931151,1759515044134,-4020.92187793,0.000169,2]
[388931152,1759515044144,-561.30760079,0.0001692,2]
[388931153,1759515044154,-2287.9900583,0.00016937,2]
[388931154,1759515044163,-302.0,0.00016938,2]
[388931155,1759515044173,-1213.0,0.00016938,2]
[388931156,1759515044182,-1190.59515935,0.00016946,2]
[388931157,1759515044191,-2603.18530363,0.0001695,2]
[388931158,1759515044203,-1217.0,0.0001695,2]
[388931159,1759515044215,-619.09142122,0.0001695,2]
[388931160,1759515044226,-1766.70034299,0.0001695,2]
[388931165,1759515046343,-218.0007232,0.0001695,2]
[388931166,1759515046535,-5870.718,0.0001695,2]
[388931167,1759515046557,-415.57538388,0.0001695,2]
[388931168,1759515048696,-3523.43178934,0.0001695,2]
[388931169,1759515048711,-1058.42482263,0.0001695,2]
[388931170,1759515049847,-218.0007232,0.0001695,2]
[388931171,1759515055591,-218.0007232,0.00016681,2]
[388931172,1759515148563,2316.29,0.00015979,2]
[388931173,1759515218563,-300.0,0.0001668,2]
[388931174,1759515218593,-2007.96,0.00016681,2]
[388931175,1759515218625,-1972.2128731,0.00016681,2]
[388931176,1759515218643,-300.0,0.00016681,2]
[388931177,1759515218669,-2007.96,0.00016681,2]
[388931178,1759515218689,-10131.6942538,0.00016681,2]
[388931179,1759515218699,-1425.0,0.0001669,2]
[388931180,1759515218710,-195.0,0.00016736,2]
[388931181,1759515218723,-1425.0,0.00016745,2]
[388931182,1759515218732,-500.0,0.0001678,2]
[388931183,1759515218742,-500.0,0.0001679,2]
[388931184,1759515218751,-235.1728731,0.0001679,2]
[388931185,1759515229684,605.38,0.00016004,2]
[388931186,1759515259151,256.0,0.000144,2]
[388931187,1759515259565,251.0,0.0001558,2]
[388931188,1759515282893,500.0,0.00015988,2]
[388931189,1759515291464,31926.2214,0.00016586,2]
[388931190,1759515334358,1000.0,0.00016586,2]
[388931191,1759515358312,9270.18,0.00015971,2]
[388931192,1759515359905,-218.0007232,0.00016631,2]
[388931193,1759515369876,-240.99028327,0.00016631,2]
[388931194,1759515384679,12753.24,0.00015976,2]
[388931195,1759515431079,474.674134,0.00016586,2]
[388931196,1759515435372,505.87,0.00016438,2]
[388931198,1759515474177,156.12559572,0.00016,2]
[388931199,1759515475752,641.92893646,0.00017,7]
[388931200,1759515502121,1500.0,0.00015931,2]
[388931201,1759515526378,19467.9093135,0.000166,2]
[388931202,1759515567820,888.06061822,0.00016582,2]
[388931203,1759515597118,902.67,0.00016062,2]
[388931206,1759515794149,249.0,0.000134,2]
[388931207,1759515794631,244.0,0.0001458,2]
[388931208,1759515795000,239.0,0.0001577,2]
[388931209,1759515800919,-272.32948069,0.00016635,2]
[388931210,1759515800944,-519.155279,0.00016656,2]
[388931211,1759515800969,-2500.0,0.00016656,2]
[388931212,1759515800998,-250.0,0.00016678,2]
[388931213,1759515801029,-195.0,0.00016685,2]
[388931214,1759515827002,-2500.0,0.00016719,2]
[388931215,1759515827026,-888.19151213,0.00016797,2]
[388931216,1759515827053,-1200.0,0.00016797,2]
[388931217,1759515827079,-300.0,0.00016797,2]
[388931218,1759515827103,-152.333,0.00016798,2]
[388931219,1759515827126,-278.0615,0.00016798,2]
[388931220,1759515827149,-5072.0438,0.00016798,2]
[388931221,1759515827174,-2129.2012,0.00016798,2]
[388931222,1759515827198,-2389.015,0.00016816,2]
[388931223,1759515827222,-151.0,0.00016849,2]
[388931224,1759515827263,-7965.41053268,0.00016849,2]
[388931225,1759515827298,-599.60298508,0.00016849,2]
[388931226,1759515827337,-623.61361705,0.00016849,2]
[388931227,1759515827370,-231.28369723,0.00016849,2]
[388931228,1759515827409,-1783.75839614,0.00016853,2]
[388931229,1759515867885,5513.0,0.000125,5]
[388931230,1759515868193,2239.0,0.000122,3]
[388931231,1759515913215,150.0,0.00015288,2]
[388931232,1759515913280,150.0,0.00015854,2]
[388931233,1759515913360,150.0,0.0001642,2]
[388931234,1759515913550,150.0,0.00015288,2]
[388931235,1759515913588,150.0,0.00015854,2]
[388931236,1759515913680,150.0,0.0001642,2]
[388931237,1759515913850,150.0,0.00016137,2]
[388931238,1759515913927,150.0,0.00015288,2]
[388931239,1759515918480,150.0,0.00015288,2]
[388931240,1759515918546,150.0,0.00015854,2]
[388931241,1759515918618,150.0,0.0001642,2]
[388931242,1759515918721,150.0,0.00015288,2]
[388931243,1759515918789,150.0,0.00015854,2]
[388931244,1759515918844,150.0,0.0001642,2]
[388931245,1759515919217,12287.7,0.00015953,2]
[388931246,1759515921113,150.0,0.00015288,2]
[388931247,1759515921169,150.0,0.00016137,2]
[388931248,1759515924190,150.0,0.00015288,2]
[388931249,1759515924259,150.0,0.00016137,2]
[388931250,1759515925677,150.0,0.00015288,2]
[388931251,1759515925748,150.0,0.00016137,2]
[388931252,1759515933390,150.0,0.00015288,2]
[388931253,1759515933495,150.0,0.00015288,2]
[388931254,1759515933655,150.0,0.00015627,2]
[388931255,1759515933709,150.0,0.00015967,2]
[388931256,1759515933754,150.0,0.00016307,2]
[388931257,1759515934027,150.0,0.00015288,2]
[388931258,1759515934073,150.0,0.00016137,2]
[388931259,1759515934172,150.0,0.00015288,2]
[388931260,1759515934274,150.0,0.00015288,2]
[388931261,1759515936697,150.0,0.00015288,2]
[388931262,1759515938066,150.0,0.00015288,2]
[388931263,1759515938116,150.0,0.00015854,2]
[388931264,1759515938185,150.0,0.0001642,2]
[388931265,1759515993555,1953.96,0.00015945,2]
[388931266,1759516031866,600.0,0.000165,6]
[388931267,1759516033536,1300.0,0.000166,6]
[388931268,1759516066226,559.83,0.00015922,2]
[388931276,1759516097652,260.91,0.00015922,2]
[388931281,1759516171185,339.01,0.00015893,2]
[388931282,1759516197491,3240.13,0.00015885,2]
[388931283,1759516225198,2448.45,0.00015856,2]
[388931295,1759516231867,-150.0,0.00016647,2]
[388931298,1759516231877,-364.8271269,0.00016651,2]
[388931299,1759516231888,-888.06061822,0.00016656,2]
[388931300,1759516231898,-1900.0,0.000167,6]
[388931301,1759516231908,-1262.67057,0.0001678,2]
[388931302,1759516231919,-20629.06507464,0.00016788,2]
[388931303,1759516231929,-740.81587717,0.00016793,2]
[388931304,1759516231942,-178.5929,0.00016798,2]
[388931305,1759516231951,-2600.0,0.000168,6]
[388931306,1759516231961,-20629.06507463,0.000168,2]
[388931307,1759516231971,-260.91,0.00016807,2]
[388931308,1759516231983,-1200.0,0.0001681,2]
[388931309,1759516231992,-300.0,0.00016811,2]
[388931310,1759516232002,-550.0,0.00016811,2]
[388931311,1759516232011,-1143.778137,0.00016812,2]
[388931312,1759516232023,-29334.6525431,0.00016812,2]
[388931313,1759516232032,-2010.2212163,0.00016812,2]
[388931314,1759516232042,-20629.06507463,0.00016813,2]
[388931315,1759516232051,-20629.06507463,0.00016825,2]
[388931316,1759516232061,-20629.06507463,0.00016838,2]
[388931317,1759516232070,-1000.0,0.0001685,2]
[388931318,1759516232080,-2500.0,0.0001685,2]
[388931319,1759516232089,-20629.06507463,0.0001685,2]
[388931320,1759516232099,-1000.0,0.00016859,2]
[388931321,1759516232109,-8446.88019659,0.00016859,2]
[388931322,1759516232118,-171.14214968,0.00016859,2]
[388931323,1759516232128,-12494.87981725,0.00016863,2]
[388931324,1759516232140,-8134.18525738,0.00016863,2]
[388931325,1759516232151,-218.0007233,0.00016863,2]
[388931326,1759516232160,-6500.77499414,0.00016863,2]
[388931327,1759516232171,-8618.55910776,0.00016863,2]
[388931328,1759516232181,-30936.4317757,0.00016863,2]
[388931329,1759516232191,-8446.88019652,0.00016864,2]
[388931330,1759516232200,-865.2649103,0.00016866,2]
[388931331,1759516232210,-8446.88019652,0.00016868,2]
[388931332,1759516232220,-3727.3952106,0.00016873,2]
[388931347,1759516232424,-2813.70228177,0.00016873,2]
[388931349,1759516232438,-1305.0,0.00016873,2]
[388931354,1759516232474,-600.78270415,0.00016873,2]
[388931356,1759516232483,-8446.88019652,0.00016877,2]
[388931358,1759516232493,-2118.90882992,0.00016882,2]
[388931360,1759516232508,-4195.90458375,0.00016882,2]
[388931363,1759516232522,-2132.06678285,0.00016882,2]
[388931365,1759516232532,-1226.84440777,0.00016886,2]
[388931368,1759516232550,-4290.00000002,0.00016886,2]
[388931370,1759516232561,-327.7799999,0.00016886,2]
[388931374,1759516232592,-750.0,0.00016886,2]
[388931380,1759516232637,-1852.25578883,0.00016886,2]
[388931382,1759516232646,-7965.41053268,0.00016888,2]
[388931384,1759516232655,-231.28369723,0.00016888,2]
[388931386,1759516232665,-8446.88019652,0.00016891,2]
[388931388,1759516232675,-8446.88019652,0.00016895,2]
[388931390,1759516232684,-225.30182527,0.00016897,2]
[388931392,1759516232693,-500.0,0.00016897,2]
[388931394,1759516232703,-500.0,0.00016897,2]
[388931396,1759516232711,-500.0,0.00016897,2]
[388931398,1759516232722,-500.0,0.00016897,2]
[388931400,1759516232731,-502.59826601,0.00016897,2]
[388931402,1759516232741,-500.0,0.00016897,2]
[388931404,1759516232751,-500.0,0.00016897,2]
[388931406,1759516232760,-500.0,0.00016897,2]
[388931408,1759516232769,-500.0,0.00016897,2]
[388931410,1759516232778,-500.0,0.00016897,2]
[388931412,1759516232787,-500.0,0.00016897,2]
[388931414,1759516232797,-500.0,0.00016897,2]
[388931416,1759516232807,-500.0,0.00016897,2]
[388931418,1759516232817,-500.0,0.00016897,2]
[388931420,1759516232826,-500.0,0.00016897,2]
[388931422,1759516232835,-500.0,0.00016897,2]
[388931424,1759516232845,-500.0,0.00016897,2]
[388931426,1759516232854,-500.0,0.00016897,2]
[388931428,1759516232863,-500.0,0.00016897,2]
[388931430,1759516232872,-500.0,0.00016897,2]
[388931432,1759516232882,-500.0,0.00016897,2]
[388931434,1759516232891,-500.0,0.00016897,2]
[388931436,1759516232901,-90.10940816,0.00016897,2]
[388931439,1759516232913,-409.89059184,0.00016897,2]
[388931441,1759516232924,-500.0,0.00016897,2]
[388931443,1759516232935,-500.0,0.00016897,2]
[388931444,1759516232949,-500.0,0.00016897,2]
[388931446,1759516232958,-500.0,0.00016897,2]
[388931448,1759516232967,-500.0,0.00016897,2]
[388931450,1759516232977,-64978.1012744,0.00016898,2]
[388931452,1759516232988,-3200.0,0.000169,6]
[388931455,1759516232998,-160.17277587,0.000169,2]
[388931457,1759516233009,-291.83652022,0.000169,2]
[388931458,1759516233020,-496.53518527,0.000169,2]
[388931460,1759516233030,-714.35665516,0.000169,2]
[388931462,1759516233039,-8446.88019652,0.000169,2]
[388931464,1759516233048,-267.79293355,0.000169,2]
[388931466,1759516233058,-152.70831464,0.000169,2]
[388931469,1759516233067,-1262.67058,0.0001691,2]
[388931470,1759516233077,-8260.13072239,0.00016943,2]
[388931473,1759516233086,-151.0,0.00016946,2]
[388931474,1759516233096,-356.71194292,0.00016949,2]
[388931477,1759516233106,-266.18964737,0.00016949,2]
[388931478,1759516233115,-500.0,0.00016949,2]
[388931481,1759516233125,-500.0,0.00016949,2]
[388931483,1759516233134,-500.0,0.00016949,2]
[388931485,1759516233144,-500.0,0.00016949,2]
[388931486,1759516233153,-500.0,0.00016949,2]
[388931489,1759516233164,-500.0,0.00016949,2]
[388931491,1759516233173,-500.0,0.00016949,2]
[388931493,1759516233182,-500.0,0.00016949,2]
[388931495,1759516233191,-500.0,0.00016949,2]
[388931497,1759516233201,-500.0,0.00016949,2]
[388931499,1759516233211,-500.0,0.00016949,2]
[388931501,1759516233220,-500.0,0.00016949,2]
[388931503,1759516233230,-500.0,0.00016949,2]
[388931505,1759516233239,-500.0,0.00016949,2]
[388931507,1759516233248,-500.0,0.00016949,2]
[388931509,1759516233258,-500.0,0.00016949,2]
[388931511,1759516233267,-322.6107,0.00016949,2]
[388931513,1759516233276,-500.0,0.00016949,2]
[388931515,1759516233286,-212.12703332,0.00016949,2]
[388931542,1759516233516,-150.0,0.00016949,2]
[388931546,1759516233571,-150.0,0.00016949,2]
[388931548,1759516233580,-150.0,0.00016949,2]
[388931550,1759516233590,-150.0,0.00016949,2]
[388931552,1759516233599,-150.0,0.00016949,2]
[388931554,1759516233611,-500.0,0.00016949,2]
[388931556,1759516233620,-150.0,0.00016949,2]
[388931558,1759516233629,-150.0,0.00016949,2]
[388931560,1759516233639,-150.0,0.00016949,2]
[388931562,1759516233648,-150.0,0.00016949,2]
[388931565,1759516233658,-500.0,0.00016949,2]
[388931566,1759516233667,-150.0,0.00016949,2]
[388931568,1759516233676,-150.0,0.00016949,2]
[388931570,1759516233685,-151.88612152,0.00016949,2]
[388931572,1759516233694,-150.0,0.00016949,2]
[388931574,1759516233704,-500.0,0.00016949,2]
[388931576,1759516233713,-500.0,0.00016949,2]
[388931578,1759516233723,-500.0,0.00016949,2]
[388931579,1759516233732,-150.0,0.00016949,2]
[388931580,1759516233741,-150.5681816,0.00016949,2]
[388931581,1759516233751,-150.0,0.00016949,2]
[388931582,1759516233760,-500.0,0.00016949,2]
[388931583,1759516233770,-2145.0,0.00016949,2]
[388931584,1759516233779,-150.0,0.00016949,2]
[388931585,1759516233789,-500.0,0.00016949,2]
[388931586,1759516233799,-1516.0,0.00016949,2]
[388931587,1759516233809,-500.0,0.00016949,2]
[388931588,1759516233819,-150.0,0.00016949,2]
[388931589,1759516233831,-500.0,0.00016949,2]
[388931590,1759516233840,-150.0,0.00016949,2]
[388931591,1759516233850,-500.0,0.00016949,2]
[388931592,1759516233860,-150.0,0.00016949,2]
[388931593,1759516233870,-150.0,0.00016949,2]
[388931594,1759516233881,-150.0,0.00016949,2]
[388931595,1759516233890,-152.05339285,0.00016949,2]
[388931596,1759516233900,-150.0,0.00016949,2]
[388931597,1759516233909,-150.0,0.00016949,2]
[388931598,1759516233919,-150.0,0.00016949,2]
[388931599,1759516233929,-150.0,0.00016949,2]
[388931600,1759516233938,-500.0,0.00016949,2]
[388931601,1759516233952,-150.0,0.00016949,2]
[388931602,1759516233962,-150.0,0.00016949,2]
[388931603,1759516233972,-150.0,0.00016949,2]
[388931604,1759516233982,-500.0,0.00016949,2]
[388931605,1759516233992,-500.0,0.00016949,2]
[388931606,1759516234001,-1943.09074906,0.0001695,2]
[388931607,1759516234010,-200.0,0.0001695,2]
[388931608,1759516234021,-234.0,0.0001695,2]
[388931609,1759516234031,-151.0,0.0001695,2]
[388931610,1759516234041,-151.0,0.0001695,2]
[388931611,1759516234051,-1023.10276466,0.0001695,2]
[388931612,1759516234061,-151.80819967,0.0001695,2]
[388931613,1759516234070,-33665.5340358,0.0001695,2]
[388931614,1759516234080,-124776.0,0.00016959,2]
[388931615,1759516234090,-26357.0,0.00016959,2]
[388931616,1759516234100,-151.0,0.00016959,2]
[388931617,1759516234111,-151.0,0.00016959,2]
[388931618,1759516234121,-2862.360222,0.00016959,2]
[388931619,1759516234130,-2862.360222,0.00016959,2]
[388931620,1759516234138,-151.0,0.00016959,2]
[388931621,1759516234149,-2862.360222,0.00016959,2]
[388931622,1759516234158,-2862.360222,0.00016959,2]
[388931623,1759516234168,-500.0,0.00016973,2]
[388931624,1759516234178,-500.0,0.00016973,2]
[388931625,1759516234187,-500.0,0.00016973,2]
[388931626,1759516234197,-518.99449017,0.00016973,2]
[388931627,1759516234207,-500.0,0.00016973,2]
[388931628,1759516234216,-280.0,0.00016973,2]
[388931629,1759516234225,-500.0,0.00016973,2]
[388931630,1759516234234,-500.0,0.00016973,2]
[388931631,1759516234244,-500.0,0.00016973,2]
[388931632,1759516234253,-500.0,0.00016973,2]
[388931633,1759516234262,-500.0,0.00016973,2]
[388931634,1759516234272,-500.0,0.00016973,2]
[388931635,1759516234281,-580.40454504,0.00016973,2]
[388931636,1759516234291,-524.05827751,0.00016973,2]
[388931637,1759516234300,-500.0,0.00016973,2]
[388931638,1759516234310,-500.0,0.00016973,2]
[388931639,1759516234320,-500.0,0.00016973,2]
[388931640,1759516234330,-500.0,0.00016973,2]
[388931641,1759516234339,-500.0,0.00016973,2]
[388931642,1759516234350,-500.0,0.00016973,2]
[388931643,1759516234363,-500.0,0.00016973,2]
[388931644,1759516234372,-500.0,0.00016973,2]
[388931645,1759516234382,-500.0,0.00016973,2]
[388931646,1759516234391,-500.0,0.00016973,2]
[388931647,1759516234400,-501.00599735,0.00016973,2]
[388931648,1759516234410,-500.0,0.00016973,2]
[388931649,1759516234419,-293.23269247,0.00016973,2]
[388931650,1759516234429,-500.0,0.00016973,2]
[388931651,1759516234438,-500.0,0.00016973,2]
[388931652,1759516234447,-500.0,0.00016973,2]
[388931653,1759516234456,-500.0,0.00016973,2]
[388931654,1759516234469,-500.0,0.00016973,2]
[388931655,1759516234478,-500.0,0.00016973,2]
[388931656,1759516234488,-500.0,0.00016973,2]
[388931657,1759516234497,-359.0,0.00016986,2]
[388931658,1759516234508,-151.47861608,0.00016986,2]
[388931659,1759516234518,-166.61081421,0.00016986,2]
[388931660,1759516234528,-238.84017038,0.00016986,2]
[388931661,1759516234537,-208.34846588,0.00016986,2]
[388931662,1759516234547,-278.92308931,0.00016986,2]
[388931663,1759516234557,-298.68103535,0.00016986,2]
[388931664,1759516234567,-161.64748627,0.00016986,2]
[388931665,1759516234577,-165.44309197,0.00016986,2]
[388931666,1759516234586,-289.68908603,0.00016986,2]
[388931667,1759516234596,-206.51894039,0.00016986,2]
[388931668,1759516234607,-175.6831318,0.00016986,2]
[388931669,1759516234617,-150.57111411,0.00016986,2]
[388931670,1759516234627,-184.08999511,0.00016986,2]
[388931671,1759516234636,-227.02594169,0.00016986,2]
[388931672,1759516234647,-151.0,0.00016996,2]
[388931673,1759516234657,-151.0,0.00016997,2]
[388931674,1759516234666,-151.0,0.00016997,2]
[388931675,1759516234676,-277.51307112,0.00016997,2]
[388931676,1759516234686,-8565.75555911,0.00016998,2]
[388931677,1759516234696,-1839.33359996,0.00016999,2]
[388931678,1759516234705,-35174.85367136,0.00016999,2]
[388931679,1759516234715,-155.0,0.00016999,2]
[388931680,1759516234726,-1000.0,0.00016999,2]
[388931681,1759516234735,-150.0,0.00016999,2]
[388931682,1759516234744,-300.0,0.00016999,2]
[388931683,1759516234754,-305.28744867,0.00016999,2]
[388931684,1759516234763,-300.0,0.00016999,2]
[388931685,1759516234773,-416.45095014,0.00016999,2]
[388931686,1759516234783,-300.0,0.00016999,2]
[388931687,1759516234792,-300.0,0.00016999,2]
[388931688,1759516234802,-151.0,0.00016999,2]
[388931689,1759516234812,-2862.360222,0.00016999,2]
[388931690,1759516234822,-2862.360222,0.00016999,2]
[388931691,1759516234832,-151.0,0.00016999,2]
[388931692,1759516234841,-2862.360222,0.00016999,2]
[388931693,1759516234851,-2862.360222,0.00016999,2]
[388931694,1759516234861,-427668.84893413,0.00017,2]
[388931695,1759516235575,-153545.06871823,0.00017,2]
[388931696,1759516235587,-147348.73638147,0.00017,2]
[388931697,1759516235598,-214932.10916783,0.00017,2]
[388931698,1759516235611,-556.8968615,0.00017,2]
[388931699,1759516235623,-1013.39514513,0.00017,2]
[388931700,1759516235634,-1237.48289145,0.00017,2]
[388931706,1759516238653,-20629.06507463,0.00016875,2]
[388931707,1759516238663,-199.95570231,0.0001699,2]
[388931708,1759516238673,-199.95570231,0.0001699,2]
[388931709,1759516238684,-199.95570231,0.0001699,2]
[388931710,1759516238693,-6270.78374844,0.00017,2]
[388931711,1759516238704,-14046.39738317,0.00017,2]
[388931712,1759516239896,-3218.85000006,0.00017,2]
[388931713,1759516239911,-3685.36199778,0.00017,2]
[388931714,1759516239959,-41515.05270264,0.00017,2]
[388931715,1759516240087,-1170.52682,0.00017,2]
[388931716,1759516240100,-789.74352181,0.00017,2]
[388931717,1759516240113,-1225.55,0.00017,2]
[388931718,1759516240126,-2821.89588897,0.00017,2]
[388931719,1759516240154,-366.9724799,0.00017,2]
[388931720,1759516240170,-280.60645611,0.00017,2]
[388931721,1759516240182,-428.25505818,0.00017,2]
[388931724,1759516242983,-500.0,0.00016837,2]